bitfinex/quotes_ETHUSD_20251215
["timestamp","ask_amount","ask_price","bid_price","bid_amount"]
[1765824970025,0.05118668,2938.1,2937.2,0.58047529]
[1765824970345,0.05118668,2938.1,2938.0,0.4705]
[1765824970545,0.60018668,2938.5,2938.0,0.4705]
[1765824970546,0.05118668,2938.5,2938.0,0.4705]
[1765824970845,0.05118668,2938.2,2937.6,0.4999]
[1765824971334,0.05118668,2938.2,2938.1,0.6541]
[1765824971713,0.05118668,2938.9,2938.1,1.154]
[1765824971914,0.05118668,2939.4,2938.8,0.4705]
[1765824971915,0.60018668,2939.4,2938.8,0.4705]
[1765824972140,3.40159194,2939.8,2939.1,0.605]
[1765824972328,3.40159194,2939.8,2938.2,0.4999]
[1765824972329,0.05,2939.5,2938.2,0.6835]
[1765824972642,0.549,2939.4,2938.3,0.4999]
[1765824972844,3.45269692,2939.9,2938.3,0.4999]
[1765824973017,0.549,2939.8,2938.3,0.4999]
[1765824973344,0.549,2939.7,2938.5,0.58047529]
[1765824973515,3.45277767,2939.9,2938.6,0.4999]
[1765824973711,1.0326,2939.8,2938.2,0.1836]
[1765824973925,0.05,2939.5,2938.2,0.1836]
[1765824974221,0.4836,2939.7,2938.3,3.93724274]
[1765824974414,0.405504,2939.3,2938.2,0.1836]
[1765824974611,0.405504,2939.1,2937.9,0.1836]
[1765824974815,0.05,2938.9,2937.9,0.1836]
[1765824975011,0.1952,2938.0,2937.4,0.0889]
[1765824975218,3.40379182,2937.9,2937.4,0.0889]
[1765824975435,7.56275277,2937.9,2937.4,0.0889]
[1765824975634,0.4836,2937.8,2937.0,0.1814]
[1765824976243,0.10118668,2938.3,2937.7,0.4705]
[1765824976244,0.05118668,2938.3,2937.7,0.4705]
[1765824976652,0.05118668,2938.3,2938.2,0.6541]
[1765824976828,0.1952,2939.1,2938.2,0.6541]
[1765824977145,0.4836,2939.2,2938.2,0.6541]
[1765824977146,0.549,2939.0,2938.4,0.4705]
[1765824977358,6.80318388,2939.8,2938.6,3.40298101]
[1765824977514,0.549,2939.7,2938.9,0.4705]
[1765824977720,7.28678388,2939.8,2938.9,0.4705]
[1765824977919,0.549,2939.7,2938.9,0.9704]
[1765824978116,3.40136054,2940.0,2938.9,0.9704]
[1765824978340,0.549,2940.0,2939.0,0.4999]
[1765824978750,3.40126921,2940.1,2939.1,0.1836]
[1765824978921,0.549,2940.1,2939.1,0.1836]
[1765824979244,10.20442872,2939.9,2939.1,0.1836]
[1765824979417,1.06880287,2939.8,2939.2,0.1836]
[1765824979619,1.61780287,2939.8,2939.2,0.1836]
[1765824979821,0.4744,2939.3,2938.4,3.40314498]
[1765824980044,0.4744,2939.3,2938.2,0.6835]
[1765824980347,0.4744,2939.3,2938.3,0.4999]
[1765824980548,0.549,2939.2,2938.3,0.4999]
[1765824980846,0.549,2939.4,2938.3,0.4999]
[1765824981164,0.549,2939.3,2938.4,3.40320373]
[1765824981376,0.549,2939.2,2938.6,3.40298101]
[1765824981653,0.549,2939.8,2939.2,0.6541]
[1765824981850,0.39505903,2939.7,2939.2,0.6541]
[1765824982058,0.71128982,2940.9,2939.8,0.4705]
[1765824982256,0.549,2940.6,2940.0,0.4705]
[1765824982624,0.549,2940.6,2940.1,0.1825]
[1765824983150,0.549,2940.6,2940.2,0.4999]
[1765824983360,0.40007829,2940.5,2940.2,0.4999]
[1765824983558,0.40007829,2940.5,2940.1,0.1825]
[1765824983762,0.549,2940.6,2940.2,3.40110963]
[1765824983966,7.35035609,2940.6,2940.1,0.1825]
[1765824984126,6.80135609,2940.6,2940.1,0.1825]
[1765824984321,3.94966653,2940.6,2940.1,0.1825]
[1765824984625,3.40066653,2940.6,2940.1,0.1825]
[1765824984853,0.549,2940.5,2940.1,0.1825]
[1765824985025,1.0326,2940.5,2939.6,1.08037529]
[1765824985226,0.549,2940.4,2939.3,0.4999]
[1765824985450,6.802027,2940.3,2939.3,3.90205076]
[1765824985755,0.549,2940.2,2939.3,3.90205076]
[1765824986062,0.7351027,2940.1,2939.1,3.40238995]
[1765824986362,0.7351027,2940.1,2938.9,3.58512088]
[1765824986363,0.7351027,2940.1,2939.0,0.4999]
[1765824986600,0.55,2940.3,2940.0,0.4705]
[1765824986864,0.001,2940.6,2940.2,0.653]
[1765824987028,0.001,2940.6,2940.5,0.4705]
[1765824987370,0.001,2940.6,2940.5,3.87128217]
[1765824987576,3.39947987,2941.7,2940.5,3.87128217]
[1765824987577,0.37281008,2942.0,2940.5,22.98518192]
[1765824987723,0.4836,2941.9,2940.9,0.4705]
[1765824988165,0.55,2941.8,2940.9,0.9704]
[1765824988455,0.55,2941.8,2940.5,10.97955442]
[1765824988456,0.55,2941.7,2940.5,7.57877225]
[1765824988619,0.60118668,2941.7,2940.5,7.30146434]
[1765824988824,1.08478668,2941.7,2940.5,0.4999]
[1765824989026,0.05118668,2941.3,2940.2,0.1825]
[1765824989222,0.55,2941.2,2940.2,0.6824]
[1765824989441,6.8001768,2941.1,2940.2,0.6824]
[1765824989678,6.8001768,2941.1,2939.9,3.40143805]
[1765824989679,0.73501768,2941.0,2939.9,3.40143805]
[1765824989827,0.73501768,2941.0,2939.8,3.40150306]
[1765824989828,1.21861768,2941.0,2939.8,3.40150306]
[1765824990025,0.6788,2940.9,2940.1,3.40116808]
[1765824990254,0.6788,2940.9,2939.7,0.1826]
[1765824990255,0.72998668,2940.9,2939.7,0.1826]
[1765824990459,1.08925197,2940.8,2939.3,0.4826]
[1765824990657,0.405504,2940.6,2939.3,0.4826]
[1765824990964,0.55,2940.5,2939.4,0.4826]
[1765824991253,0.55,2940.4,2939.4,0.4826]
[1765824991555,3.9510135,2940.3,2939.5,3.4019391]
[1765824991756,3.9510135,2940.3,2939.4,0.4826]
[1765824991757,0.39510135,2940.2,2939.4,7.2866056]
[1765824992268,0.55,2940.3,2939.4,7.2866056]
[1765824992269,0.55,2940.3,2939.4,10.20606044]
[1765824992449,0.55,2940.3,2939.5,0.4647]
[1765824992450,0.551,2940.3,2939.5,0.4647]
[1765824993027,0.5335,2940.7,2939.5,0.4647]
[1765824993028,3.45062085,2940.7,2940.2,0.6806]
[1765824993242,0.2452,2942.0,2940.6,0.498]
[1765824993456,4.4336638,2941.9,2940.8,6.8008705]
[1765824993762,0.95138638,2941.8,2940.8,6.8008705]
[1765824993964,0.95138638,2941.8,2940.8,10.66600575]
[1765824994225,0.1952,2942.0,2940.9,0.4647]
[1765824994503,0.551,2941.8,2940.9,0.4647]
[1765824994882,0.4835,2941.7,2940.4,0.4647]
[1765824995082,0.5335,2941.7,2940.2,0.1826]
[1765824995286,0.05,2941.2,2940.0,0.1826]
[1765824995602,10.7512652,2941.1,2940.0,0.1826]
[1765824995778,11.2347652,2941.1,2940.0,0.1826]
[1765824995974,0.4835,2941.0,2940.0,3.58393556]
[1765824996176,0.78846768,2940.9,2940.0,3.58396054]
[1765824996378,0.78846768,2940.9,2940.0,6.98532108]
[1765824996379,0.98726768,2940.9,2940.0,6.98532108]
[1765824996576,0.78846768,2940.9,2940.1,0.4647]
[1765824996777,0.551,2941.1,2940.1,0.4647]
[1765824997516,3.40020401,2941.0,2940.2,6.80225834]
[1765824997687,3.40020401,2941.0,2940.1,3.86588987]
[1765824997913,0.1988,2940.9,2940.1,7.26713472]
[1765824998702,0.551,2941.1,2940.1,6.80243472]
[1765824998900,3.95111178,2941.1,2940.2,0.4647]
[1765824999150,0.551,2941.1,2940.2,0.4647]
[1765824999447,0.551,2941.5,2940.3,6.802027]
[1765824999633,3.95063132,2941.5,2940.3,6.802027]
[1765824999830,0.44341313,2941.4,2940.4,0.4647]
[1765825000206,0.551,2941.5,2940.4,0.4647]
[1765825000534,0.551,2941.5,2940.4,1.04517529]
[1765825000912,0.551,2941.5,2941.4,0.1825]
[1765825001113,0.4835,2942.7,2941.4,0.6805]
[1765825001312,0.551,2942.6,2941.5,0.4647]
[1765825001512,0.551,2942.6,2941.6,3.39951047]
[1765825001513,6.79694136,2942.5,2941.6,3.39951047]
[1765825001716,0.73479414,2942.4,2941.5,3.39959743]
[1765825002032,0.73479414,2942.4,2941.4,0.1825]
[1765825002033,0.4835,2942.3,2941.4,0.1825]
[1765825002210,0.4835,2942.3,2940.6,3.40058839]
[1765825002211,0.6892,2941.5,2940.7,0.1825]
[1765825002530,0.001,2940.9,2940.7,7.44825146]
[1765825002732,0.001,2940.9,2940.7,8.53315233]
[1765825003043,0.001,2940.9,2940.8,1.54317529]
[1765825003551,0.551,2941.9,2941.0,10.20061203]
[1765825003722,3.44982494,2942.4,2941.8,0.498]
[1765825004041,0.74493055,2942.3,2941.1,0.4647]
[1765825004403,0.60218668,2942.4,2941.1,0.4647]
[1765825004840,7.39936242,2942.4,2941.1,1.04517529]
[1765825005211,0.60218668,2942.4,2941.2,0.4647]
[1765825005419,4.0007819,2942.4,2941.2,0.4647]
[1765825005623,7.39937712,2942.4,2941.3,6.7997144]
[1765825005819,0.05,2942.1,2940.8,0.4647]
[1765825006222,0.4835,2942.1,2941.2,3.39992633]
[1765825006453,0.551,2942.0,2941.2,3.39992633]
[1765825006626,0.551,2942.0,2941.2,6.79989913]
[1765825006828,0.1988,2941.9,2941.0,3.40014276]
[1765825007030,0.1988,2941.9,2940.8,1.04517529]
[1765825007222,0.1988,2941.9,2940.7,0.1825]
[1765825007223,0.4835,2941.8,2940.7,0.1825]
[1765825007549,0.4835,2941.8,2940.7,3.582987]
[1765825007760,10.1981847,2941.7,2940.5,3.4007361]
[1765825007962,0.455504,2941.5,2940.3,0.4647]
[1765825008164,0.455504,2941.5,2940.6,3.40061567]
[1765825008165,0.551,2941.4,2940.6,3.40061567]
[1765825008322,0.551,2941.3,2940.7,3.40052415]
[1765825008518,0.551,2941.3,2940.7,3.4004946]
[1765825008856,0.551,2941.5,2941.2,0.1971]
[1765825009067,0.551,2941.7,2941.2,0.1971]
[1765825009351,1.22343771,2942.3,2941.4,0.498]
[1765825009516,0.551,2942.1,2941.4,0.498]
[1765825009854,0.551,2942.1,2941.5,6.79925208]
[1765825010053,0.551,2942.1,2941.6,1.11616572]
[1765825010227,0.551,2942.1,2941.7,0.4647]
[1765825010430,0.1988,2941.7,2941.0,0.1971]
[1765825010945,0.1988,2941.7,2941.2,3.39994409]
[1765825011158,0.1988,2941.7,2941.0,0.1971]
[1765825011322,0.551,2941.6,2941.0,0.6618]
[1765825011522,0.551,2941.6,2941.3,3.39978336]
[1765825011722,0.551,2941.9,2941.3,0.33997834]
[1765825012018,0.551,2941.9,2941.1,3.4000884]
[1765825012248,0.1988,2941.8,2941.1,6.8001768]
[1765825012444,0.1988,2941.8,2941.1,3.4000884]
[1765825012755,0.551,2941.8,2941.1,3.4000884]
[1765825013128,0.551,2941.8,2941.0,4.06190253]
[1765825013327,0.551,2941.8,2941.0,3.59720253]
[1765825013528,0.1988,2941.9,2941.0,3.59720253]
[1765825013743,0.551,2941.7,2941.0,11.2220308]
[1765825013922,0.551,2941.7,2941.1,0.4647]
[1765825014749,7.33296495,2942.4,2941.1,0.4647]
[1765825015050,0.551,2942.1,2941.1,1.04517529]
[1765825015236,0.551,2942.1,2941.2,1.64495061]
[1765825015437,0.551,2942.1,2942.0,0.498]
[1765825015648,0.001,2942.4,2942.0,0.9627]
[1765825015946,0.001,2942.4,2942.3,0.6871]
[1765825016147,0.4904,2942.1,2941.0,1.02152025]
[1765825016348,0.001,2942.4,2941.8,3.39923093]
[1765825016688,0.551,2942.2,2941.4,3.39964463]
[1765825016857,0.001,2942.4,2941.9,3.39907473]
[1765825017157,0.001,2942.4,2941.3,0.4647]
[1765825017158,0.4835,2942.3,2941.3,0.4647]
[1765825017327,0.4904,2942.0,2941.3,3.39979673]
[1765825017532,0.552,2941.9,2941.4,6.79948322]
[1765825017757,0.552,2941.9,2941.3,6.7997144]
[1765825017938,0.552,2941.9,2941.3,3.3998572]
[1765825018141,0.552,2941.8,2941.3,7.58420337]
[1765825018325,0.552,2941.8,2941.3,4.18434617]
[1765825018520,0.552,2941.8,2941.0,3.59727848]
[1765825018720,0.552,2941.8,2941.2,3.39995657]
[1765825018956,0.552,2941.8,2941.1,3.40000461]
[1765825019171,0.552,2941.8,2941.1,3.40000683]
[1765825019465,0.552,2941.8,2941.2,3.39994947]
[1765825019957,0.4904,2941.3,2940.7,3.40046019]
[1765825020264,0.552,2941.2,2940.6,3.40060289]
[1765825020676,0.552,2941.2,2940.5,3.58984489]
[1765825020971,0.552,2941.1,2940.5,0.6538]
[1765825021268,0.602,2941.1,2940.0,0.6493]
[1765825021467,0.552,2941.0,2940.0,1.05436827]
[1765825021690,0.552,2940.9,2940.1,3.40124485]
[1765825021984,6.8008705,2940.8,2940.0,0.002]
[1765825022186,0.552,2940.7,2940.1,0.1826]
[1765825022496,0.552,2940.7,2940.0,0.002]
[1765825022497,0.4986,2940.1,2940.0,0.002]
[1765825022771,0.552,2940.1,2940.0,0.002]
[1765825023939,0.4598,2940.5,2940.0,0.002]
[1765825024136,0.552,2940.4,2940.0,0.002]
[1765825024567,0.552,2940.3,2940.0,0.002]
[1765825024779,0.4986,2940.1,2940.0,0.002]
[1765825025213,1.413904,2940.1,2940.0,0.002]
[1765825025406,1.6104944,2940.1,2940.0,0.002]
[1765825025813,4.05333925,2940.1,2940.0,0.002]
[1765825026024,0.7485904,2940.1,2940.0,0.002]
[1765825026303,0.552,2940.1,2940.0,0.002]
[1765825026510,0.4598,2940.5,2940.0,0.002]
[1765825026720,0.05,2940.8,2940.1,0.1826]
[1765825026893,0.4598,2941.4,2940.4,0.4552]
[1765825027103,1.0128,2941.3,2940.2,0.4795]
[1765825027282,0.4598,2941.8,2940.2,0.4795]
[1765825027621,0.553,2941.7,2940.3,0.58047529]
[1765825027769,0.001,2941.8,2940.4,13.60359132]
[1765825027969,0.553,2941.7,2940.4,14.08309132]
[1765825028206,0.001,2941.8,2941.7,0.195]
[1765825028368,0.001,2941.8,2940.7,0.58047529]
[1765825028369,0.001,2941.8,2940.7,1.13347529]
[1765825028573,0.4608,2941.8,2940.8,1.29824453]
[1765825028809,0.05,2941.4,2940.3,3.40097952]
[1765825029108,0.958504,2941.3,2940.3,3.40096235]
[1765825029306,0.958504,2941.3,2940.3,3.4010065]
[1765825029307,1.418304,2941.3,2940.3,3.4010065]
[1765825029609,0.4598,2941.2,2940.1,0.1847]
[1765825029899,0.1921,2940.2,2940.0,0.002]
[1765825030108,0.7451,2940.2,2940.0,0.002]
[1765825030896,1.2049,2940.2,2940.0,0.002]
[1765825031103,0.865304,2940.1,2940.0,0.002]
[1765825031302,2.20927468,2940.1,2940.0,0.002]
[1765825031605,1.65627468,2940.1,2940.0,0.002]
[1765825031805,0.1921,2940.6,2940.0,0.002]
[1765825032109,0.1921,2940.8,2940.1,0.1847]
[1765825032403,0.1921,2940.8,2940.0,0.002]
[1765825032404,0.553,2940.5,2940.0,0.002]
[1765825033109,0.553,2940.9,2940.0,0.002]
[1765825033275,0.4598,2940.5,2940.0,0.002]
[1765825034209,3.86066001,2940.5,2940.0,0.002]
[1765825034408,0.603,2940.4,2940.0,0.002]
[1765825034709,1.0128,2940.3,2940.0,0.002]
[1765825035018,7.52784894,2940.5,2940.0,0.002]
[1765825035217,0.553,2940.2,2940.0,0.002]
[1765825035374,7.98764894,2940.5,2940.0,0.002]
[1765825035375,0.4598,2940.4,2940.0,0.002]
[1765825035579,3.4504456,2940.8,2940.0,0.002]
[1765825035780,0.553,2940.7,2940.0,0.002]
[1765825036087,0.553,2940.6,2940.2,6.80225834]
[1765825036291,0.4598,2941.6,2940.3,0.4795]
[1765825036498,3.39967525,2941.5,2940.4,0.03400897]
[1765825036706,0.553,2941.4,2940.5,0.4795]
[1765825037379,0.001,2941.7,2940.5,0.4795]
[1765825037583,0.554,2941.7,2940.5,0.4795]
[1765825037780,0.001,2941.7,2940.5,1.0325]
[1765825038114,0.001,2941.7,2941.6,0.195]
[1765825038295,0.001,2941.7,2941.6,3.59451047]
[1765825038614,0.001,2941.7,2941.6,3.39951047]
[1765825039678,0.001,2941.7,2941.6,4.0989244]
[1765825039874,0.001,2941.7,2941.6,4.5784244]
[1765825040613,0.001,2941.7,2941.6,5.15889969]
[1765825041232,0.553,2943.0,2941.7,0.58047529]
[1765825041520,0.003,2943.1,2941.7,8.43128068]
[1765825041839,0.003,2943.1,2941.8,2.6128247]
[1765825042029,3.86062907,2943.1,2941.8,3.0923247]
[1765825042180,7.25845814,2943.1,2941.8,0.4795]
[1765825042380,0.4598,2943.0,2941.9,6.7983276]
[1765825042798,0.1921,2942.9,2941.8,3.39924278]
[1765825042985,0.003,2943.1,2941.9,0.4795]
[1765825043725,0.003,2943.1,2941.8,6.79852213]
[1765825044055,0.003,2943.1,2941.6,0.69941393]
[1765825044056,0.4598,2943.0,2941.6,0.69941393]
[1765825044356,10.19437269,2942.8,2941.6,3.39948592]
[1765825044702,0.4598,2942.7,2941.6,3.39948592]
[1765825044902,3.39812423,2942.8,2941.7,0.4795]
[1765825045103,0.553,2942.7,2941.7,0.4795]
[1765825045537,0.553,2942.7,2941.7,1.05997529]
[1765825045712,0.553,2942.7,2941.8,0.78589717]
[1765825045914,0.553,2942.7,2941.8,1.26539717]
[1765825046150,0.553,2942.7,2942.6,0.1891]
[1765825046306,0.004,2943.1,2942.6,3.58734776]
[1765825046504,0.004,2943.1,2942.6,6.98570295]
[1765825046909,0.1921,2942.7,2941.9,0.553]
[1765825047130,0.1921,2942.7,2941.9,3.3990958]
[1765825047322,0.1921,2942.7,2941.8,0.4795]
[1765825047707,1.0128,2942.6,2941.5,0.197]
[1765825048120,0.405504,2942.4,2941.5,0.002]
[1765825048311,6.79740338,2942.3,2941.5,0.002]
[1765825048546,1.61815289,2942.2,2941.5,0.002]
[1765825048729,0.553,2942.1,2941.5,0.002]
[1765825048943,0.6907,2941.6,2941.5,0.002]
[1765825049327,1.1505,2941.6,2941.5,0.002]
[1765825050504,0.553,2941.7,2941.5,0.002]
[1765825051604,0.9868,2941.6,2941.5,0.002]
[1765825052228,0.4871,2941.6,2941.5,0.002]
[1765825052824,3.95229646,2941.8,2941.5,0.002]
[1765825053018,4.88678611,2941.8,2941.5,0.002]
[1765825053339,1.01518965,2941.8,2941.5,0.002]
[1765825053708,1.48748965,2941.8,2941.5,0.002]
[1765825053906,0.4723,2941.7,2941.5,0.002]
[1765825054108,1.01518965,2941.8,2941.5,0.002]
[1765825054306,0.553,2941.8,2941.5,0.002]
[1765825054752,0.4704,2941.6,2941.5,0.002]
[1765825055170,0.1895,2941.9,2941.5,0.002]
[1765825055371,0.4723,2941.8,2941.5,0.002]
[1765825055960,0.4704,2941.6,2941.5,0.002]
[1765825056355,0.9427,2941.6,2941.5,0.002]
[1765825056679,0.6618,2941.9,2941.5,0.002]
[1765825056878,1.2138,2941.9,2941.5,0.002]
[1765825057085,0.4723,2941.8,2941.5,0.002]
[1765825057385,0.4704,2941.6,2941.5,0.002]
[1765825058190,0.4723,2941.8,2941.5,0.002]
[1765825058668,0.7415,2941.9,2941.5,0.002]
[1765825058869,1.2138,2941.9,2941.5,0.002]
[1765825059416,0.4723,2941.8,2941.5,0.002]
[1765825059582,0.4704,2941.6,2941.5,0.002]
[1765825059782,1.0224,2941.6,2941.5,0.002]
[1765825059982,1.4947,2941.6,2941.5,0.002]
[1765825060178,1.5447,2941.6,2941.5,0.002]
[1765825060384,1.5447,2941.6,2940.7,3.40047778]
[1765825060708,1.0243,2941.5,2940.4,0.002]
[1765825060907,3.39974161,2941.4,2940.4,0.002]
[1765825061131,0.44240416,2941.3,2940.4,0.002]
[1765825061292,0.91470416,2941.3,2940.4,0.002]
[1765825061811,0.4723,2941.2,2940.4,0.002]
[1765825062177,0.552,2941.1,2940.4,0.002]
[1765825062617,0.4723,2941.0,2940.4,0.002]
[1765825062781,0.6599,2940.5,2940.4,0.002]
[1765825063412,0.44240416,2941.3,2940.4,0.002]
[1765825063413,0.1895,2940.8,2940.4,0.002]
[1765825063590,0.552,2940.7,2940.4,0.002]
[1765825063980,6.7999456,2941.2,2940.4,0.002]
[1765825063981,0.1895,2941.1,2940.4,0.002]
[1765825064180,0.74617456,2941.0,2940.4,0.002]
[1765825064584,1.21847456,2941.0,2940.4,0.002]
[1765825064919,0.4723,2940.9,2940.4,0.002]
[1765825065793,0.552,2941.2,2940.4,0.4685]
[1765825066115,0.552,2941.2,2940.4,0.002]
[1765825066316,0.94717932,2941.2,2940.4,0.002]
[1765825066531,0.877804,2941.1,2940.4,0.002]
[1765825066687,0.927804,2941.1,2940.4,0.002]
[1765825066886,3.87250401,2941.0,2940.4,0.002]
[1765825067127,0.552,2940.9,2940.4,0.002]
[1765825067421,0.4424504,2940.8,2940.4,0.002]
[1765825067590,0.4704,2940.5,2940.4,0.002]
[1765825068700,4.34348217,2940.5,2940.4,0.002]
[1765825068925,4.89548217,2940.5,2940.4,0.002]
[1765825070422,6.802027,2940.3,2940.0,0.002]
[1765825070593,0.4666,2940.1,2940.0,0.002]
[1765825070994,0.9389,2940.1,2940.0,0.002]
[1765825071525,0.9427,2940.1,2940.0,0.002]
[1765825072593,4.89494485,2940.1,2940.0,0.002]
[1765825073020,4.94494485,2940.1,2940.0,0.002]
[1765825073227,5.77955292,2940.1,2940.0,0.002]
[1765825073634,5.22855292,2940.1,2940.0,0.002]
[1765825073821,0.4424504,2940.8,2940.0,0.002]
[1765825073822,0.4723,2940.5,2940.0,0.002]
[1765825074208,1.0233,2940.8,2940.0,0.002]
[1765825074638,1.0233,2940.8,2940.1,0.186]
[1765825074948,0.1895,2941.5,2940.7,0.4607]
[1765825075102,1.0253,2941.8,2940.8,0.03400435]
[1765825075306,0.001,2941.8,2940.8,0.4665]
[1765825075503,0.001,2941.8,2941.7,0.6491]
[1765825075904,0.001,2941.8,2941.4,0.6549]
[1765825076203,0.001,2941.8,2941.4,0.1884]
[1765825076412,0.001,2941.8,2941.4,0.552]
[1765825076829,0.001,2941.8,2941.5,6.79925208]
[1765825077030,0.001,2941.8,2941.5,7.87434995]
[1765825077639,0.001,2941.8,2941.5,6.79925208]
[1765825077840,0.001,2941.8,2941.5,7.26575208]
[1765825078038,0.001,2941.8,2941.7,0.4607]
[1765825078412,0.001,2941.8,2941.7,0.9272]
[1765825078614,0.001,2941.8,2941.5,6.79925208]
[1765825078936,0.001,2941.8,2941.7,3.3993949]
[1765825079138,0.001,2941.8,2941.7,3.8600949]
[1765825079468,0.001,2941.8,2941.7,4.3265949]
[1765825079814,0.001,2941.8,2941.7,3.8600949]
[1765825080120,0.001,2941.8,2941.7,3.3993949]
[1765825080435,0.9437,2941.8,2941.5,0.002]
[1765825080753,0.4704,2941.6,2941.5,0.002]
[1765825080959,4.34221047,2941.6,2941.5,0.002]
[1765825081127,5.17167102,2941.6,2941.5,0.002]
[1765825081328,1.77216055,2941.6,2941.5,0.002]
[1765825081552,0.9427,2941.6,2941.5,0.002]
[1765825082561,0.4704,2941.6,2941.5,0.002]
[1765825083231,0.9613,2941.6,2941.5,0.002]
[1765825083429,4.36081047,2941.6,2941.5,0.002]
[1765825083736,0.9613,2941.6,2941.5,0.002]
[1765825084034,1.39747181,2941.6,2941.5,0.002]
[1765825084232,0.9613,2941.6,2941.5,0.002]
[1765825084671,4.36081047,2941.6,2941.5,0.002]
[1765825084836,0.9613,2941.6,2941.5,0.002]
[1765825085240,4.36081047,2941.6,2941.5,0.002]
[1765825085760,0.9613,2941.6,2941.5,0.002]
[1765825085974,4.79698316,2941.6,2941.5,0.002]
[1765825086642,1.39747269,2941.6,2941.5,0.002]
[1765825086962,1.5133,2941.6,2941.5,0.002]
[1765825087936,0.001,2941.6,2941.5,0.9488]
[1765825088246,0.001,2942.8,2941.8,0.405504]
[1765825088447,0.001,2942.8,2942.6,0.58047529]
[1765825088765,0.001,2942.8,2942.1,0.58047529]
[1765825088966,0.001,2944.0,2942.7,10.77519442]
[1765825089165,3.39698518,2943.8,2942.8,0.58047529]
[1765825089373,0.4909,2943.7,2942.7,6.79647942]
[1765825089571,0.4909,2943.5,2942.7,6.79647942]
[1765825089884,0.552,2943.3,2942.7,6.79647942]
[1765825090178,0.552,2943.8,2942.8,1.06957529]
[1765825090389,3.88829334,2943.5,2942.7,6.79647942]
[1765825090692,0.4909,2943.5,2942.7,6.79647942]
[1765825090846,0.552,2943.2,2942.5,6.79690249]
[1765825091170,0.552,2943.2,2942.4,3.3985544]
[1765825091360,0.1919,2942.5,2942.1,3.39885548]
[1765825091561,0.552,2942.4,2941.5,0.002]
[1765825091763,0.552,2942.4,2941.6,0.4891]
[1765825092074,0.552,2942.4,2942.1,3.39885353]
[1765825092272,0.552,2942.4,2942.0,3.39902241]
[1765825092473,0.4909,2942.3,2941.7,3.39932016]
[1765825092644,0.4909,2942.3,2941.7,6.79871506]
[1765825092969,0.552,2942.2,2941.5,0.002]
[1765825093167,0.552,2942.1,2941.5,0.002]
[1765825094339,4.08127224,2942.5,2941.5,0.002]
[1765825094544,0.552,2942.4,2941.5,0.002]
[1765825094745,0.552,2942.3,2941.5,0.002]
[1765825095446,0.6828,2942.5,2941.5,0.58247529]
[1765825095650,0.552,2942.4,2941.5,0.58247529]
[1765825095867,0.1919,2942.5,2941.5,1.07157529]
[1765825096067,0.552,2942.4,2941.6,1.50104927]
[1765825096246,0.552,2942.4,2941.6,1.99014927]
[1765825096577,0.4919,2942.4,2941.5,0.58247529]
[1765825097075,0.4919,2942.4,2941.5,0.002]
[1765825097076,0.1919,2941.6,2941.5,0.002]
[1765825097252,0.7429,2941.6,2941.5,0.002]
[1765825097452,1.2338,2941.6,2941.5,0.002]
[1765825097859,3.39920211,2941.9,2941.5,0.002]
[1765825097860,0.1919,2941.9,2941.5,0.002]
[1765825098057,0.551,2941.8,2941.5,0.002]
[1765825098563,1.0419,2941.8,2941.5,0.002]
[1765825099077,0.4909,2941.7,2941.5,0.002]
[1765825099872,3.39870169,2942.3,2941.5,0.002]
[1765825099873,0.4919,2942.4,2941.5,0.002]
[1765825100179,0.4919,2942.4,2942.3,0.1908]
[1765825100180,0.001,2942.4,2942.3,0.1908]
[1765825100780,0.001,2942.4,2942.3,0.6799]
[1765825101670,0.001,2942.4,2942.3,0.1908]
[1765825101854,0.001,2942.4,2942.3,4.07860169]
[1765825102049,0.001,2942.4,2942.3,5.40681853]
[1765825102253,0.003,2943.1,2942.3,5.40681853]
[1765825102254,0.003,2943.1,2942.4,0.58047529]
[1765825102449,0.003,2943.1,2942.8,0.58047529]
[1765825102751,0.11482771,2943.4,2943.3,0.1862]
[1765825102955,0.001,2943.6,2943.4,0.58047529]
[1765825103162,0.001,2943.6,2943.5,1.26940689]
[1765825103782,0.001,2943.6,2943.5,5.2471983]
[1765825104162,0.001,2943.6,2943.5,3.39731612]
[1765825104980,0.001,2943.6,2943.5,4.50086457]
[1765825105185,0.001,2943.6,2943.5,4.46689141]
[1765825106781,0.001,2943.6,2943.4,3.39738127]
[1765825106951,0.001,2943.6,2943.3,0.1862]
[1765825107152,0.001,2943.6,2943.0,0.1862]
[1765825107484,0.001,2943.6,2943.5,3.39731612]
[1765825107849,0.001,2943.6,2943.1,7.37603099]
[1765825108055,0.001,2943.6,2943.2,1.1449176]
[1765825109866,0.001,2943.6,2943.3,3.39754697]
[1765825110064,0.551,2943.5,2943.3,3.39754697]
[1765825110266,0.4694,2943.4,2942.9,3.39796027]
[1765825110491,0.6396,2943.3,2942.4,3.39855241]
[1765825110690,0.0886,2943.3,2942.8,3.39805662]
[1765825110900,0.551,2943.2,2942.8,3.39805662]
[1765825111403,0.551,2943.2,2942.4,3.39858618]
[1765825111404,0.1923,2942.9,2942.4,3.39858618]
[1765825111581,0.1923,2942.9,2941.8,0.1908]
[1765825111782,3.39823971,2942.7,2941.5,0.5016]
[1765825111976,0.4914,2942.6,2941.9,3.39914538]